[Event "2nd Namma Bengaluru Open-B 2025"]
[Site "Bengaluru"]
[Date "2025.04.13"]
[Round "10.1"]
[White "Rohith P"]
[Black "Aditya Dileepraj"]
[Result "1/2-1/2"]
[Annotator "NA"]
[ECO "B40"]
[WhiteElo "1808"]
[BlackElo "1746"]
[PlyCount "57"]
[EventDate "2025.04.10"]
[EventType "swiss"]
[EventCountry "IND"]
[SourceTitle "playchess.com"]
[Source "ChessBase"]
[SourceQuality "1"]
[TimeControl "3600+30"]

1. e4 {[%emt 0:00:03]} c5 {[%emt 0:00:08]} 2. Nf3 {[%emt 0:00:04]} e6 {[%emt 0:00:16]} 3. g3 {[%emt 0:00:11]} a6 {[%emt 0:02:01]} 4. a4 {[%emt 0:02:30]} d6 {[%emt 0:00:54]} 5. Bg2 {[%emt 0:00:04]} Nf6 {[%emt 0:00:51]} 6. Nc3 {[%emt 0:00:37]} Qc7 {[%emt 0:00:31]} 7. O-O {[%emt 0:01:32]} Nbd7 {[%emt 0:01:37]} 8. d4 {[%emt 0:00:32]} cxd4 {[%emt 0:00:18]} 9. Nxd4 {[%emt 0:00:02]} Be7 {[%emt 0:00:40]} 10. f4 {[%emt 0:02:05]} h5 {[%emt 0:02:46]} 11. h3 {[%emt 0:02:47]} Nb6 {[%emt 0:01:21]} 12. Qd3 {[%emt 0:06:37]} Nc4 {[%emt 0:02:01]} 13. b3 {[%emt 0:01:14]} Na5 {[%emt 0:00:17]} 14. Ba3 {[%emt 0:01:08]} Bd7 {[%emt 0:01:46]} 15. Rad1 {[%emt 0:01:31]} Rc8 {[%emt 0:00:25]} 16. Nde2 {[%emt 0:00:16]} Qb6+ {[%emt 0:01:46]} 17. Rf2 {[%emt 0:02:09]} Nc6 {[%emt 0:06:16]} 18. Bxd6 {[%emt 0:05:28]} Nb4 {[%emt 0:00:21]} 19. Qd2 {[%emt 0:01:59]} Bxd6 {[%emt 0:04:59]} 20. Qxd6 {[%emt 0:00:08]} Qxd6 {[%emt 0:00:17]} 21. Rxd6 {[%emt 0:00:02]} Ke7 {[%emt 0:00:44]} 22. e5 {[%emt 0:01:15]} Nfd5 {[%emt 0:00:30]} 23. Nxd5+ {[%emt 0:00:17]} Nxd5 {[%emt 0:00:14]} 24. Bxd5 {[%emt 0:00:11]} exd5 {[%emt 0:00:04]} 25. Nd4 {[%emt 0:00:37]} Bxh3 {[%emt 0:00:42]} 26. Nf3 {[%emt 0:01:23]} Rhd8 {[%emt 0:00:47]} 27. Rxd8 {[%emt 0:00:33]} Rxd8 {[%emt 0:00:06]} 28. Rd2 {[%emt 0:00:36]} Bf5 {[%emt 0:01:06]} 29. Nd4 {[%emt 0:02:16]} 1/2-1/2

[Event "2nd Namma Bengaluru Open-B 2025"]
[Site "Bengaluru"]
[Date "2025.04.13"]
[Round "10.2"]
[White "Nijesh R"]
[Black "Afreed T Khan"]
[Result "1/2-1/2"]
[Annotator "NA"]
[ECO "C75"]
[WhiteElo "1813"]
[BlackElo "1921"]
[PlyCount "46"]
[EventDate "2025.04.10"]
[EventType "swiss"]
[EventCountry "IND"]
[SourceTitle "playchess.com"]
[Source "ChessBase"]
[SourceQuality "1"]
[TimeControl "3600+30"]

1. e4 {[%emt 0:00:23]} e5 {[%emt 0:02:28]} 2. Nf3 {[%emt 0:00:19]} Nc6 {[%emt 0:00:04]} 3. Bb5 {[%emt 0:00:33]} a6 {[%emt 0:00:08]} 4. Ba4 {[%emt 0:00:15]} d6 {[%emt 0:00:06]} 5. c3 {[%emt 0:01:34]} Bd7 {[%emt 0:00:37]} 6. d4 {[%emt 0:02:15]} Nf6 {[%emt 0:05:53]} 7. Nbd2 {[%emt 0:04:13]} g6 {[%emt 0:02:25]} 8. O-O {[%emt 0:04:06]} Bg7 {[%emt 0:02:58]} 9. Re1 {[%emt 0:04:14]} O-O {[%emt 0:01:36]} 10. dxe5 {[%emt 0:05:20]} Nxe5 {[%emt 0:00:25]} 11. Nxe5 {[%emt 0:01:35]} dxe5 {[%emt 0:00:04]} 12. Nf3 {[%emt 0:01:06]} b5 {[%emt 0:02:27]} 13. Bb3 {[%emt 0:01:08]} Qe7 {[%emt 0:00:11]} 14. h3 {[%emt 0:06:40]} Bc6 {[%emt 0:03:19]} 15. Qc2 {[%emt 0:03:17]} h6 {[%emt 0:02:33]} 16. a4 {[%emt 0:02:13]} Nd7 {[%emt 0:02:25]} 17. axb5 {[%emt 0:07:39]} axb5 {[%emt 0:00:32]} 18. Rxa8 {[%emt 0:01:45]} Bxa8 {[%emt 0:00:56]} 19. Be3 {[%emt 0:02:14]} Kh8 {[%emt 0:06:38]} 20. c4 {[%emt 0:04:30]} Nc5 {[%emt 0:03:26]} 21. Bxc5 {[%emt 0:01:36]} Qxc5 {[%emt 0:00:14]} 22. cxb5 {[%emt 0:00:40]} Qxb5 {[%emt 0:00:21]} 23. Re3 {[%emt 0:00:33]} Qb6 {[%emt 0:07:20]} 1/2-1/2

[Event "2nd Namma Bengaluru Open-B 2025"]
[Site "Bengaluru"]
[Date "2025.04.13"]
[Round "10.3"]
[White "Nayak, Biswajit"]
[Black "Ebin Benny"]
[Result "1/2-1/2"]
[Annotator "NA"]
[ECO "D02"]
[WhiteElo "1979"]
[BlackElo "1821"]
[PlyCount "86"]
[EventDate "2025.04.10"]
[EventType "swiss"]
[EventCountry "IND"]
[SourceTitle "playchess.com"]
[Source "ChessBase"]
[SourceQuality "1"]
[TimeControl "3600+30"]

1. d4 {[%emt 0:00:14]} d5 {[%emt 0:03:38]} 2. Nf3 {[%emt 0:00:21]} Nf6 {[%emt 0:00:11]} 3. Bf4 {[%emt 0:00:07]} e6 {[%emt 0:00:15]} 4. e3 {[%emt 0:00:08]} Bd6 {[%emt 0:00:06]} 5. Bg3 {[%emt 0:00:53]} O-O {[%emt 0:01:05]} 6. Nbd2 {[%emt 0:00:12]} b6 {[%emt 0:01:12]} 7. Bd3 {[%emt 0:00:43]} Ba6 {[%emt 0:10:50]} 8. O-O {[%emt 0:06:49]} c5 {[%emt 0:03:02]} 9. Ne5 {[%emt 0:10:25]} Qc7 {[%emt 0:05:39]} 10. Bxa6 {[%emt 0:05:08]} Nxa6 {[%emt 0:00:09]} 11. Qe2 {[%emt 0:01:23]} Nb4 {[%emt 0:19:05]} 12. c3 {[%emt 0:05:14]} Nc6 {[%emt 0:00:07]} 13. Nxc6 {[%emt 0:06:27]} Bxg3 {[%emt 0:01:46]} 14. hxg3 {[%emt 0:03:15]} Qxc6 {[%emt 0:00:02]} 15. g4 {[%emt 0:00:41]} Rab8 {[%emt 0:12:40]} 16. g5 {[%emt 0:03:34]} Ne8 {[%emt 0:01:02]} 17. Nf3 {[%emt 0:04:41]} f6 {[%emt 0:03:18]} 18. g3 {[%emt 0:02:20]} Nd6 {[%emt 0:00:16]} 19. Kg2 {[%emt 0:00:33]} Ne4 {[%emt 0:00:33]} 20. gxf6 {[%emt 0:00:07]} gxf6 {[%emt 0:00:01]} 21. Nd2 {[%emt 0:00:53]} Nxd2 {[%emt 0:01:04]} 22. Qxd2 {[%emt 0:00:03]} c4 {[%emt 0:00:41]} 23. Rh1 {[%emt 0:00:20]} Rf7 {[%emt 0:00:07]} 24. Rh6 {[%emt 0:00:27]} b5 {[%emt 0:01:17]} 25. Rah1 {[%emt 0:00:54]} Rbb7 {[%emt 0:00:12]} 26. Qe2 {[%emt 0:01:40]} f5 {[%emt 0:02:23]} 27. Qh5 {[%emt 0:00:24]} Kf8 {[%emt 0:01:24]} 28. Qg5 {[%emt 0:00:47]} Qd7 {[%emt 0:01:20]} 29. Qf4 {[%emt 0:00:49]} Rb6 {[%emt 0:00:55]} 30. Qe5 {[%emt 0:00:45]} Ke8 {[%emt 0:00:36]} 31. Qh8+ {[%emt 0:00:21]} Rf8 {[%emt 0:00:12]} 32. Qxh7 {[%emt 0:00:12]} Qxh7 {[%emt 0:00:16]} 33. Rxh7 {[%emt 0:00:02]} Rf7 {[%emt 0:00:28]} 34. Kf3 {[%emt 0:04:23]} a5 {[%emt 0:01:04]} 35. Kf4 {[%emt 0:00:24]} b4 {[%emt 0:00:26]} 36. Ke5 {[%emt 0:00:22]} Rxh7 {[%emt 0:00:34]} 37. Rxh7 {[%emt 0:00:03]} Kd8 {[%emt 0:00:20]} 38. f3 {[%emt 0:00:15]} a4 {[%emt 0:00:06]} 39. a3 {[%emt 0:00:47]} bxa3 {[%emt 0:00:18]} 40. bxa3 {[%emt 0:00:02]} Rb3 {[%emt 0:00:24]} 41. g4 {[%emt 0:13:52]} fxg4 {[%emt 0:01:56]} 42. fxg4 {[%emt 0:00:30]} Rxc3 43. g5 Rxe3+ {[%emt 0:01:00]} 1/2-1/2

[Event "2nd Namma Bengaluru Open-B 2025"]
[Site "Bengaluru"]
[Date "2025.04.13"]
[Round "10.4"]
[White "Sarvani Cheedella"]
[Black "Nihaan Pohane"]
[Result "1/2-1/2"]
[Annotator "NA"]
[ECO "D88"]
[WhiteElo "1857"]
[BlackElo "1882"]
[PlyCount "74"]
[EventDate "2025.04.10"]
[EventType "swiss"]
[EventCountry "IND"]
[SourceTitle "playchess.com"]
[Source "ChessBase"]
[SourceQuality "1"]
[TimeControl "3600+30"]

1. d4 {[%emt 0:01:06]} Nf6 {[%emt 0:00:05]} 2. c4 {[%emt 0:00:09]} g6 {[%emt 0:00:05]} 3. Nc3 {[%emt 0:00:08]} d5 {[%emt 0:00:10]} 4. cxd5 {[%emt 0:00:05]} Nxd5 {[%emt 0:00:07]} 5. e4 {[%emt 0:00:06]} Nxc3 {[%emt 0:00:06]} 6. bxc3 {[%emt 0:00:06]} Bg7 {[%emt 0:00:10]} 7. Be3 {[%emt 0:00:11]} c5 {[%emt 0:00:10]} 8. Bc4 {[%emt 0:00:23]} Nc6 {[%emt 0:00:32]} 9. Ne2 {[%emt 0:00:13]} O-O {[%emt 0:00:17]} 10. O-O {[%emt 0:00:22]} Bg4 {[%emt 0:00:04]} 11. f3 {[%emt 0:00:50]} Na5 {[%emt 0:00:06]} 12. Bxf7+ {[%emt 0:02:39]} Rxf7 {[%emt 0:00:07]} 13. fxg4 {[%emt 0:00:05]} Rxf1+ {[%emt 0:00:10]} 14. Kxf1 {[%emt 0:00:34]} cxd4 {[%emt 0:00:08]} 15. cxd4 {[%emt 0:00:37]} e5 {[%emt 0:00:12]} 16. d5 {[%emt 0:00:59]} Nc4 {[%emt 0:00:10]} 17. Bf2 {[%emt 0:01:14]} Qf6 {[%emt 0:00:09]} 18. Kg1 {[%emt 0:02:37]} Rf8 {[%emt 0:00:09]} 19. Bc5 {[%emt 0:02:52]} Rc8 {[%emt 0:01:09]} 20. Bf2 {[%emt 0:01:10]} Rf8 {[%emt 0:00:48]} 21. Bc5 {[%emt 0:00:30]} Rf7 {[%emt 0:00:33]} 22. Qc2 {[%emt 0:05:54]} b5 {[%emt 0:03:38]} 23. Ng3 {[%emt 0:49:10]} Bh6 {[%emt 0:00:39]} 24. Qe2 {[%emt 0:00:00]} Rc7 {[%emt 0:25:53]} 25. Bf2 {[%emt 0:00:00]} Qd6 {[%emt 0:02:05]} 26. h4 {[%emt 0:00:00]} Rf7 {[%emt 0:05:28]} 27. g5 {[%emt 0:00:00]} Bf8 {[%emt 0:00:31]} 28. a4 {[%emt 0:00:00]} Qb4 {[%emt 0:02:08]} 29. Be1 {[%emt 0:00:00]} Bc5+ {[%emt 0:05:50]} 30. Kh1 {[%emt 0:00:00]} Qb3 {[%emt 0:00:42]} 31. axb5 {[%emt 0:00:00]} Rf4 {[%emt 0:01:06]} 32. Nf1 {[%emt 0:00:00]} Qb2 {[%emt 0:05:40]} 33. Qxc4 {[%emt 0:00:00]} Qxa1 {[%emt 0:00:33]} 34. Qxc5 {[%emt 0:00:00]} Rxf1+ {[%emt 0:14:00]} 35. Kh2 {[%emt 0:00:00]} Qd4 {[%emt 0:01:19]} 36. Qc8+ {[%emt 0:00:00]} Kg7 {[%emt 0:00:38]} 37. Bg3 {[%emt 0:00:00]} Qxe4 {[%emt 0:02:15]} 1/2-1/2

[Event "2nd Namma Bengaluru Open-B 2025"]
[Site "Bengaluru"]
[Date "2025.04.13"]
[Round "10.5"]
[White "Arush A"]
[Black "Borse Vaibhav"]
[Result "1/2-1/2"]
[Annotator "NA"]
[ECO "B13"]
[WhiteElo "1876"]
[BlackElo "1778"]
[PlyCount "72"]
[EventDate "2025.04.10"]
[EventType "swiss"]
[EventCountry "IND"]
[SourceTitle "playchess.com"]
[Source "ChessBase"]
[SourceQuality "1"]
[TimeControl "3600+30"]

1. e4 {[%emt 0:00:06]} c6 {[%emt 0:01:38]} 2. d4 {[%emt 0:00:22]} d5 {[%emt 0:00:05]} 3. exd5 {[%emt 0:00:17]} cxd5 {[%emt 0:00:05]} 4. Bd3 {[%emt 0:00:35]} Nc6 {[%emt 0:00:17]} 5. c3 {[%emt 0:00:51]} Nf6 {[%emt 0:00:07]} 6. Nf3 {[%emt 0:00:15]} Bg4 {[%emt 0:00:07]} 7. O-O {[%emt 0:00:42]} e6 {[%emt 0:00:25]} 8. Bf4 {[%emt 0:00:50]} Bd6 {[%emt 0:00:12]} 9. Bxd6 {[%emt 0:00:17]} Qxd6 {[%emt 0:00:06]} 10. Nbd2 {[%emt 0:00:13]} O-O {[%emt 0:00:44]} 11. Re1 {[%emt 0:01:29]} Qc7 {[%emt 0:00:46]} 12. Qc2 {[%emt 0:01:43]} Bxf3 {[%emt 0:01:09]} 13. Nxf3 {[%emt 0:00:06]} g6 {[%emt 0:00:12]} 14. Qd2 {[%emt 0:01:53]} Rfe8 {[%emt 0:06:40]} 15. Bb5 {[%emt 0:06:30]} Nd7 {[%emt 0:02:29]} 16. Kh1 {[%emt 0:13:18]} a6 {[%emt 0:02:01]} 17. Bxc6 {[%emt 0:02:50]} bxc6 {[%emt 0:00:07]} 18. Re3 {[%emt 0:00:56]} c5 {[%emt 0:04:18]} 19. Rae1 {[%emt 0:02:16]} cxd4 {[%emt 0:05:44]} 20. cxd4 {[%emt 0:00:13]} Rec8 {[%emt 0:02:59]} 21. R3e2 {[%emt 0:02:16]} Qc4 {[%emt 0:02:30]} 22. a3 {[%emt 0:02:50]} Rab8 {[%emt 0:01:06]} 23. h3 {[%emt 0:01:48]} Rb3 {[%emt 0:06:41]} 24. Qf4 {[%emt 0:04:25]} Qc7 {[%emt 0:00:09]} 25. Qh6 {[%emt 0:02:43]} Nf8 {[%emt 0:03:04]} 26. Ne5 {[%emt 0:02:06]} Qa7 {[%emt 0:07:08]} 27. Rd2 {[%emt 0:01:45]} Qb7 {[%emt 0:04:30]} 28. Qf4 {[%emt 0:04:16]} Qe7 {[%emt 0:03:31]} 29. Nd3 {[%emt 0:04:49]} Nd7 {[%emt 0:00:53]} 30. Nb4 {[%emt 0:01:31]} a5 {[%emt 0:01:11]} 31. Nxd5 {[%emt 0:00:37]} Qd8 {[%emt 0:00:54]} 32. Ne3 {[%emt 0:00:35]} Nf6 {[%emt 0:01:02]} 33. Ng4 {[%emt 0:04:12]} Nxg4 {[%emt 0:00:41]} 34. Qxg4 {[%emt 0:00:02]} Rcb8 {[%emt 0:00:14]} 35. Ree2 {[%emt 0:00:31]} Qd5 {[%emt 0:00:22]} 36. Qf4 {[%emt 0:01:17]} Rxh3+ {[%emt 0:00:45]} 1/2-1/2

[Event "2nd Namma Bengaluru Open-B 2025"]
[Site "Bengaluru"]
[Date "2025.04.13"]
[Round "10.6"]
[White "Kishore V"]
[Black "Subramanian, R M"]
[Result "0-1"]
[Annotator "NA"]
[ECO "B07"]
[WhiteElo "1826"]
[BlackElo "1863"]
[PlyCount "44"]
[EventDate "2025.04.10"]
[EventType "swiss"]
[EventCountry "IND"]
[SourceTitle "playchess.com"]
[Source "ChessBase"]
[SourceQuality "1"]
[TimeControl "3600+30"]

1. e4 {[%emt 0:00:45]} d6 {[%emt 0:00:19]} 2. d4 {[%emt 0:00:07]} Nf6 {[%emt 0:00:03]} 3. Nc3 {[%emt 0:00:07]} c6 {[%emt 0:00:05]} 4. f4 {[%emt 0:00:15]} Qa5 {[%emt 0:00:03]} 5. Bd3 {[%emt 0:00:57]} e5 {[%emt 0:00:03]} 6. Nf3 {[%emt 0:00:14]} exd4 {[%emt 0:00:07]} 7. Nxd4 {[%emt 0:00:11]} g6 {[%emt 0:00:02]} 8. h3 {[%emt 0:08:09]} Bg7 {[%emt 0:00:49]} 9. Be3 {[%emt 0:00:50]} O-O {[%emt 0:00:56]} 10. Qd2 {[%emt 0:01:24]} Nbd7 {[%emt 0:05:09]} 11. O-O {[%emt 0:03:37]} Re8 {[%emt 0:01:43]} 12. a3 {[%emt 0:11:56]} Qc7 {[%emt 0:02:09]} 13. Rae1 {[%emt 0:09:58]} a6 {[%emt 0:01:26]} 14. Nf3 {[%emt 0:01:08]} b5 {[%emt 0:01:31]} 15. g4 {[%emt 0:02:47]} Bb7 {[%emt 0:05:15]} 16. Qf2 {[%emt 0:06:45]} c5 {[%emt 0:07:04]} 17. e5 {[%emt 0:07:10]} Nd5 {[%emt 0:00:41]} 18. Nxd5 {[%emt 0:03:00]} Bxd5 {[%emt 0:00:03]} 19. Rd1 {[%emt 0:04:39]} Bxf3 {[%emt 0:10:56]} 20. exd6 {[%emt 0:03:10]} Qd8 {[%emt 0:00:42]} 21. Qxf3 {[%emt 0:01:37]} Rxe3 {[%emt 0:31:54]} 22. Qf2 {[%emt 0:02:44]} Re8 0-1

[Event "2nd Namma Bengaluru Open-B 2025"]
[Site "Bengaluru"]
[Date "2025.04.13"]
[Round "10.7"]
[White "Karthikeyan, J.."]
[Black "Anushka Gupta"]
[Result "1/2-1/2"]
[Annotator "NA"]
[ECO "B52"]
[WhiteElo "1916"]
[BlackElo "1739"]
[PlyCount "106"]
[EventDate "2025.04.10"]
[EventType "swiss"]
[EventCountry "IND"]
[SourceTitle "playchess.com"]
[Source "ChessBase"]
[SourceQuality "1"]
[TimeControl "3600+30"]

1. e4 {[%emt 0:00:04]} c5 {[%emt 0:00:30]} 2. Nf3 {[%emt 0:00:06]} d6 {[%emt 0:00:05]} 3. Bb5+ {[%emt 0:00:52]} Bd7 {[%emt 0:00:07]} 4. Bxd7+ {[%emt 0:00:07]} Qxd7 {[%emt 0:00:04]} 5. O-O {[%emt 0:00:07]} Nc6 {[%emt 1:02:14]} 6. c3 {[%emt 0:00:33]} Nf6 {[%emt 0:00:30]} 7. Re1 {[%emt 0:00:06]} e6 {[%emt 0:00:00]} 8. d4 {[%emt 0:00:07]} cxd4 {[%emt 0:00:00]} 9. cxd4 {[%emt 0:00:03]} d5 {[%emt 0:00:00]} 10. e5 {[%emt 0:00:18]} Ne4 {[%emt 0:00:00]} 11. a3 {[%emt 0:00:11]} Be7 {[%emt 0:00:00]} 12. Be3 {[%emt 0:03:39]} O-O {[%emt 0:00:00]} 13. Nbd2 {[%emt 0:01:07]} f5 {[%emt 0:00:00]} 14. exf6 {[%emt 0:02:20]} Bxf6 {[%emt 0:00:00]} 15. Nxe4 {[%emt 0:00:38]} dxe4 {[%emt 0:00:00]} 16. Nd2 {[%emt 0:00:10]} Qd5 {[%emt 0:00:00]} 17. Rb1 {[%emt 0:04:07]} Rad8 {[%emt 0:00:00]} 18. Qc2 {[%emt 0:02:40]} Nxd4 {[%emt 0:06:00]} 19. Bxd4 {[%emt 0:00:19]} Bxd4 {[%emt 0:00:00]} 20. Nxe4 {[%emt 0:00:07]} Rc8 {[%emt 0:00:00]} 21. Qe2 {[%emt 0:00:38]} e5 {[%emt 0:00:00]} 22. Kh1 {[%emt 0:00:09]} Qb3 {[%emt 0:00:00]} 23. f3 {[%emt 0:10:15]} Rc6 {[%emt 0:00:00]} 24. h3 {[%emt 0:03:55]} Rfc8 {[%emt 0:00:00]} 25. Nc3 {[%emt 0:00:37]} a6 {[%emt 0:00:00]} 26. Qe4 {[%emt 0:00:20]} Qf7 {[%emt 0:00:00]} 27. Ne2 {[%emt 0:00:56]} Ba7 {[%emt 0:00:00]} 28. Red1 {[%emt 0:03:46]} Rc4 {[%emt 0:00:00]} 29. Qd3 {[%emt 0:00:20]} h6 {[%emt 0:00:00]} 30. Rbc1 {[%emt 0:04:35]} Rxc1 {[%emt 0:00:00]} 31. Rxc1 {[%emt 0:00:06]} Rxc1+ {[%emt 0:00:00]} 32. Nxc1 {[%emt 0:00:05]} Bd4 {[%emt 0:00:00]} 33. Qc2 {[%emt 0:01:47]} Qf4 {[%emt 0:00:00]} 34. Ne2 {[%emt 0:00:57]} Qe3 {[%emt 0:00:00]} 35. a4 {[%emt 0:00:42]} b5 {[%emt 0:00:00]} 36. b3 {[%emt 0:00:18]} h5 {[%emt 0:00:00]} 37. axb5 {[%emt 0:01:40]} axb5 {[%emt 0:00:00]} 38. Qc8+ {[%emt 0:02:39]} Kh7 {[%emt 0:00:00]} 39. Qf5+ {[%emt 0:00:07]} Kg8 {[%emt 0:00:00]} 40. Qe6+ {[%emt 0:01:32]} Kh7 {[%emt 0:00:00]} 41. Nxd4 {[%emt 0:00:11]} Qc1+ {[%emt 0:00:00]} 42. Kh2 {[%emt 0:00:06]} Qf4+ {[%emt 0:00:00]} 43. Kg1 {[%emt 0:00:07]} Qxd4+ {[%emt 0:00:00]} 44. Kh1 {[%emt 0:00:08]} Qe3 {[%emt 0:00:00]} 45. Qf5+ {[%emt 0:01:49]} Kh6 {[%emt 0:00:00]} 46. Qc2 {[%emt 0:01:44]} b4 {[%emt 0:00:15]} 47. Qc6+ {[%emt 0:02:48]} g6 {[%emt 0:01:15]} 48. Qc8 {[%emt 0:01:10]} Qf4 {[%emt 0:03:02]} 49. Qh8+ {[%emt 0:00:47]} Kg5 {[%emt 0:10:58]} 50. Qd8+ {[%emt 0:00:09]} Kh6 {[%emt 0:00:00]} 51. h4 {[%emt 0:00:23]} Kg7 {[%emt 0:00:00]} 52. Qe7+ {[%emt 0:03:08]} Kh6 {[%emt 0:00:00]} 53. Qd8 {[%emt 0:01:30]} Kg7 {[%emt 0:00:00]} 1/2-1/2

[Event "2nd Namma Bengaluru Open-B 2025"]
[Site "Bengaluru"]
[Date "2025.04.13"]
[Round "10.8"]
[White "Snehaal Roy"]
[Black "Anurag, Jaiswal"]
[Result "0-1"]
[Annotator "NA"]
[ECO "B01"]
[WhiteElo "1826"]
[BlackElo "1923"]
[PlyCount "76"]
[EventDate "2025.04.10"]
[EventType "swiss"]
[EventCountry "IND"]
[SourceTitle "playchess.com"]
[Source "ChessBase"]
[SourceQuality "1"]
[TimeControl "3600+30"]

1. e4 {[%emt 0:00:01]} d5 {[%emt 0:02:43]} 2. exd5 {[%emt 0:00:13]} Qxd5 {[%emt 0:00:12]} 3. Nc3 {[%emt 0:00:05]} Qa5 {[%emt 0:00:44]} 4. Nf3 {[%emt 0:01:23]} Nf6 {[%emt 0:00:10]} 5. Bc4 {[%emt 0:01:02]} c6 {[%emt 0:00:25]} 6. d4 {[%emt 0:01:18]} Bf5 {[%emt 0:00:05]} 7. Bd2 {[%emt 0:04:06]} e6 {[%emt 0:00:03]} 8. Qe2 {[%emt 0:01:37]} Bb4 {[%emt 0:00:27]} 9. Bb3 {[%emt 0:04:51]} Nbd7 {[%emt 0:00:20]} 10. O-O {[%emt 0:00:49]} O-O {[%emt 0:01:43]} 11. a3 {[%emt 0:03:12]} Bxc3 {[%emt 0:00:16]} 12. Bxc3 {[%emt 0:00:06]} Qc7 {[%emt 0:00:11]} 13. Bb4 {[%emt 0:00:22]} Rfe8 {[%emt 0:03:15]} 14. c4 {[%emt 0:10:54]} a5 {[%emt 0:04:56]} 15. Bc3 {[%emt 0:03:46]} a4 {[%emt 0:05:09]} 16. Bc2 {[%emt 0:00:16]} Bxc2 {[%emt 0:00:11]} 17. Qxc2 {[%emt 0:00:06]} b5 {[%emt 0:00:36]} 18. Ne5 {[%emt 0:02:08]} Nb6 {[%emt 0:02:36]} 19. Bb4 {[%emt 0:01:19]} Nxc4 {[%emt 0:00:40]} 20. Nxc4 {[%emt 0:05:40]} bxc4 {[%emt 0:00:02]} 21. Qxc4 {[%emt 0:00:08]} Rec8 {[%emt 0:00:48]} 22. b3 {[%emt 0:02:31]} axb3 {[%emt 0:00:16]} 23. Qxb3 {[%emt 0:00:03]} Rab8 {[%emt 0:00:26]} 24. Qc2 {[%emt 0:00:45]} Rd8 {[%emt 0:01:50]} 25. Rfd1 {[%emt 0:00:39]} Rd5 {[%emt 0:00:12]} 26. Rac1 {[%emt 0:00:20]} Rc8 {[%emt 0:01:31]} 27. Qa4 {[%emt 0:00:58]} Ng4 {[%emt 0:01:30]} 28. g3 {[%emt 0:00:58]} Rh5 {[%emt 0:00:35]} 29. Bd2 {[%emt 0:02:27]} Nxh2 {[%emt 0:06:16]} 30. Bf4 {[%emt 0:04:15]} Qd7 {[%emt 0:04:43]} 31. Rc5 {[%emt 0:03:57]} e5 {[%emt 0:00:53]} 32. dxe5 {[%emt 0:00:08]} Qg4 {[%emt 0:00:48]} 33. Rdc1 {[%emt 0:06:07]} Nf3+ {[%emt 0:00:26]} 34. Kf1 {[%emt 0:00:10]} Rd8 {[%emt 0:02:35]} 35. Qxc6 {[%emt 0:03:02]} Qh3+ {[%emt 0:01:37]} 36. Ke2 {[%emt 0:01:02]} Nd4+ {[%emt 0:00:02]} 37. Ke3 {[%emt 0:00:08]} Nxc6 {[%emt 0:00:12]} 38. Rxc6 {[%emt 0:08:38]} g5 {[%emt 0:00:28]} 0-1

[Event "2nd Namma Bengaluru Open-B 2025"]
[Site "Bengaluru"]
[Date "2025.04.13"]
[Round "10.9"]
[White "Malla, Nooka Raju"]
[Black "Pradiksha P S"]
[Result "1-0"]
[Annotator "NA"]
[ECO "C54"]
[WhiteElo "1860"]
[BlackElo "1799"]
[PlyCount "91"]
[EventDate "2025.04.10"]
[EventType "swiss"]
[EventCountry "IND"]
[SourceTitle "playchess.com"]
[Source "ChessBase"]
[SourceQuality "1"]
[TimeControl "3600+30"]

1. e4 {[%emt 0:00:08]} e5 {[%emt 0:00:10]} 2. Nf3 {[%emt 0:00:12]} Nc6 {[%emt 0:00:09]} 3. Bc4 {[%emt 0:00:41]} Bc5 {[%emt 0:00:11]} 4. c3 {[%emt 0:00:29]} Nf6 {[%emt 0:00:11]} 5. d3 {[%emt 0:00:06]} a6 {[%emt 0:00:08]} 6. O-O {[%emt 0:00:53]} d6 {[%emt 0:00:07]} 7. Nbd2 {[%emt 0:01:05]} h6 {[%emt 0:00:10]} 8. Re1 {[%emt 0:02:08]} O-O {[%emt 0:00:36]} 9. Nf1 {[%emt 0:01:38]} Ne7 {[%emt 0:01:37]} 10. Ng3 {[%emt 0:05:10]} Ng6 {[%emt 0:00:32]} 11. d4 {[%emt 0:02:07]} Ba7 {[%emt 0:02:33]} 12. h3 {[%emt 0:02:29]} exd4 {[%emt 0:02:08]} 13. Nxd4 {[%emt 0:01:56]} d5 {[%emt 0:01:52]} 14. exd5 {[%emt 0:02:07]} Nxd5 {[%emt 0:00:34]} 15. Qf3 {[%emt 0:01:22]} Nb4 {[%emt 0:05:55]} 16. Qe4 {[%emt 0:04:05]} Bxd4 {[%emt 0:00:34]} 17. Qxg6 {[%emt 0:03:02]} b5 {[%emt 0:05:52]} 18. Bb3 {[%emt 0:01:42]} c5 {[%emt 0:01:25]} 19. cxb4 {[%emt 0:03:51]} c4 {[%emt 0:00:46]} 20. Qe4 {[%emt 0:01:44]} cxb3 {[%emt 0:04:47]} 21. Qxa8 {[%emt 0:00:44]} Qc7 {[%emt 0:01:09]} 22. Qe4 {[%emt 0:02:50]} Bf6 {[%emt 0:02:21]} 23. Nh5 {[%emt 0:01:03]} Qd6 {[%emt 0:01:08]} 24. Bf4 {[%emt 0:00:33]} Qb6 {[%emt 0:00:30]} 25. Be3 {[%emt 0:00:22]} Qe6 {[%emt 0:01:50]} 26. Qxe6 {[%emt 0:00:13]} fxe6 {[%emt 0:00:05]} 27. Nxf6+ {[%emt 0:01:00]} Rxf6 {[%emt 0:00:06]} 28. axb3 {[%emt 0:00:26]} Bb7 {[%emt 0:00:09]} 29. Rad1 {[%emt 0:00:34]} Rg6 {[%emt 0:00:13]} 30. g3 {[%emt 0:00:19]} Bd5 {[%emt 0:00:05]} 31. Rxd5 {[%emt 0:00:42]} exd5 {[%emt 0:00:07]} 32. Bc5 {[%emt 0:00:11]} Rc6 {[%emt 0:00:22]} 33. Re5 {[%emt 0:00:25]} a5 {[%emt 0:00:25]} 34. Rxd5 {[%emt 0:00:08]} axb4 {[%emt 0:00:06]} 35. Bxb4 {[%emt 0:00:01]} Rc2 {[%emt 0:00:11]} 36. Bc3 {[%emt 0:00:07]} b4 {[%emt 0:00:11]} 37. Be5 {[%emt 0:00:49]} Re2 {[%emt 0:00:17]} 38. Kf1 {[%emt 0:00:18]} Re4 {[%emt 0:00:11]} 39. f3 {[%emt 0:00:16]} Re3 {[%emt 0:00:05]} 40. Kf2 {[%emt 0:00:05]} Rxb3 {[%emt 0:00:05]} 41. Rd7 {[%emt 0:00:20]} g5 {[%emt 0:01:28]} 42. Ke2 {[%emt 0:00:12]} h5 {[%emt 0:00:25]} 43. Rg7+ {[%emt 0:00:37]} Kf8 {[%emt 0:00:04]} 44. Rxg5 {[%emt 0:00:09]} Kf7 {[%emt 0:00:04]} 45. Bd4 {[%emt 0:00:36]} Ke6 {[%emt 0:00:45]} 46. Rxh5 {[%emt 0:00:08]} 1-0

[Event "2nd Namma Bengaluru Open-B 2025"]
[Site "Bengaluru"]
[Date "2025.04.13"]
[Round "10.10"]
[White "Karyasheel P"]
[Black "Swastik Suvam Patnaik"]
[Result "1/2-1/2"]
[Annotator "NA"]
[ECO "C58"]
[WhiteElo "1808"]
[BlackElo "1860"]
[PlyCount "24"]
[EventDate "2025.04.10"]
[EventType "swiss"]
[EventCountry "IND"]
[SourceTitle "playchess.com"]
[Source "ChessBase"]
[SourceQuality "1"]
[TimeControl "3600+30"]

1. e4 {[%emt 1:01:00]} e5 {[%emt 1:01:00]} 2. Nf3 {[%emt 0:00:30]} Nc6 {[%emt 0:00:30]} 3. Bc4 {[%emt 0:00:30]} Nf6 {[%emt 0:00:30]} 4. Ng5 {[%emt 0:00:30]} d5 {[%emt 0:00:30]} 5. exd5 {[%emt 0:00:30]} Na5 {[%emt 0:00:30]} 6. Bb5+ {[%emt 0:00:30]} c6 {[%emt 0:00:30]} 7. dxc6 {[%emt 0:00:30]} bxc6 {[%emt 0:00:30]} 8. Bd3 {[%emt 0:00:30]} Nd5 {[%emt 0:00:30]} 9. Nf3 {[%emt 0:00:30]} Bd6 {[%emt 0:00:30]} 10. O-O {[%emt 0:00:30]} Nf4 {[%emt 0:00:30]} 11. Nc3 {[%emt 0:00:30]} O-O {[%emt 0:00:30]} 12. Be2 {[%emt 0:00:30]} Bg4 {[%emt 0:00:30]} 1/2-1/2